Workbook

Sheet Лист1
M1: Приложение 1
J2: к Постановлению администрации города Усолье-Сибирское
L3: от 30.12.2025 №2528-па
I4: «Приложение 3 к муниципальной программе города Усолье-Сибирское «Социальная поддержка населения и социально ориентированных некоммерческих организаций города Усолье- Сибирское» на 2019-2027 годы»
A5: Ресурсное обеспечение реализации муниципальной программы
A6: Наименование программы, подпрограммы | B6: Ответственный исполнитель, соисполнители, участники, исполнители мероприятий | C6: Источник финансирования | D6: Общийобъем финансирования, руб. | E6: Объем финансирования, руб
E7: 2019 год | F7: 2020 год | G7: 2021 год | H7: 2022 год | I7: 2023 год | J7: 2024 год | K7: 2025 год | L7: 2026 год | M7: 2027год
A8: 1 | B8: 2 | C8: 3 | D8: 4 | E8: 5 | F8: 6 | G8: 7 | H8: 8 | I8: 9 | J8: 10 | K8: 11 | L8: 12 | M8: 12
A9: Муниципальная программа города Усолье-Сибирское «Социальная поддержка населения и социально ориентированных некоммерческих организаций города Усолье- Сибирское» на 2019-2027годы» | B9: Аппарат администрации города Усолье-Сибирское | C9: местный бюджет | D9: =SUM(E9+F9+G9+H9+I9+J9+L9+M9+K9) -> 74,924,958.61 | E9: =SUM(E10+E19) -> 6,697,706.07 | F9: =SUM(F10+F19) -> 6,865,217.31 | G9: =SUM(G10+G19) -> 6,714,290.94 | H9: =SUM(H10+H19) -> 8,060,728.30 | I9: =SUM(I10+I19+I24) -> 8,001,583.87 | J9: =SUM(J10+J19+J24) -> 8,834,587.00 | K9: =SUM(K10+K19+K24+K27) -> 11,866,497.92 | L9: =SUM(L10+L19+L24) -> 8,942,173.60 | M9: =SUM(M10+M19+M24) -> 8,942,173.60
A10: Подпрограмма 1 «Социальная поддержка отдельных категорий граждан города Усолье- Сибирское» на 2019-2027 годы | B10: Отдел кадровой работы и наград аппарата администрации города Усолье-Сибирское | C10: местный бюджет | D10: =SUM(E10+F10+G10+H10+I10+J10+L10+M10+K10) -> 64,333,951.26 | E10: =SUM(E11:E15) -> 5,741,095.87 | F10: =SUM(F11:F15) -> 6,097,117.31 | G10: =SUM(G11:G16) -> 5,946,190.94 | H10: =SUM(H11:H16) -> 7,292,628.30 | I10: 6,917,893.87 | J10: =SUM(J11:J16) -> 7,597,032.00 | K10: =SUM(K11:K16) -> 9,087,515.53 | L10: =SUM(L11:L16) -> 7,827,238.72 | M10: 7,827,238.72
A11: Основное мероприятие 1.1. Выплата пенсии за выслугу лет лицам, замещавшим должности муниципальной службы в органах местного самоуправления города Усолье-Сибирское | B11: Отдел кадровой работы и наград аппарата администрации города Усолье-Сибирское | C11: местный бюджет | D11: =SUM(E11+F11+G11+H11+I11+J11+L11+M11+K11) -> 47,854,582.12 | E11: 4,291,095.87 | F11: 4,596,183.98 | G11: 4,412,649.00 | H11: 4,969,801.74 | I11: 5,257,110.00 | J11: 5,657,652.00 | K11: 6,640,353.53 | L11: 6,014,868.00 | M11: 6,014,868.00
A12: Основное мероприятие 1.2. Ежемесячная выплата и ежегодная единовременная выплата ко Дню города (льготы) Почетным гражданам города | B12: Отдел кадровой работы и наград аппарата администрации города Усолье-Сибирское | C12: местный бюджет | D12: =SUM(E12+F12+G12+H12+I12+J12+L12+M12+K12) -> 10,670,959.14 | E12: 1,248,000.00 | F12: 1,171,733.33 | G12: 1,095,741.94 | H12: 1,096,000.00 | I12: 1,103,483.87 | J12: 1,200,000.00 | K12: 1,308,000.00 | L12: 1,224,000.00 | M12: 1,224,000.00
A13: Основное мероприятие 1.3. Расходы, связанные с изготовлением Почетных лент и удостоверений для вручения Почетным гражданам города | B13: Отдел кадровой работы и наград аппарата администрации города Усолье-Сибирское | C13: местный бюджет | D13: =SUM(E13+F13+G13+H13+I13+J13+L13+M13+K13) -> 19,600.00 | E13: 0.00 | F13: 0.00 | G13: 0.00 | H13: 3,800.00 | I13: 5,000.00 | J13: 2,700.00 | K13: 2,700.00 | L13: 2,700.00 | M13: 2,700.00
A14: Основное мероприятие 1.4. Материальная помощь на погребение Почетного гражданина муниципального образования «город Усолье-Сибирское» | B14: Отдел кадровой работы и наград аппарата администрации города Усолье-Сибирское | C14: местный бюджет | D14: =SUM(E14+F14+G14+H14+J14) -> 116,000.00 | E14: 20,000.00 | F14: 24,000.00 | G14: 24,000.00 | H14: 24,000.00 | I14: 0.00 | J14: 24,000.00 | K14: - | L14: - | M14: -
A15: Основное мероприятие 1.5. Ежемесячная социальная стипендия гражданам, поступившим по целевому набору в СУЗы и ВУЗы (медицинской, педагогической направленности) | B15: Отдел образования управления по социально-культурным вопросам администрации города Усолье-Сибирское | C15: местный бюджет | D15: 4,908,583.44 | E15: 182,000.00 | F15: 305,200.00 | G15: 413,800.00 | H15: 434,800.00 | I15: =413800+138500 -> 552,300.00 | J15: 712,680.00 | K15: 1,136,462.00 | L15: 585,670.72 | M15: 585,670.72
A16: Основное мероприятие 1.6. Оказание адресной помощи семьям граждан, призванных на военную службу по мобилизации в Вооруженные Силы Российской Федерации | B16: Отдел образования управления по социально-культурным вопросам администрации города Усолье-Сибирское | C16: местный бюджет | D16: 764,226.56 | E16: 0.00 | F16: 0.00 | G16: 0.00 | H16: 764,226.56 | I16: =I17+I18 -> 0.00 | J16: =J17+J18 -> 0.00 | K16: 0.00 | L16: =L17+L18 -> 0.00 | M16: 0.00
A17: 1.6.1. Льготный проезд в городском общественном транспорте (кроме такси) обучающимся в общеобразовательных учреждениях и учреждениях среднепрофессионального образования, находящихся на территории муниципального образования «город Усолье-Сибирское», из семей мобилизованных и военнослужащих, участвующих в специальной военной операции | B17: Отдел образования управления по социально-культурным вопросам администрации города Усолье-Сибирское | C17: местный бюджет | D17: 453,840.00 | E17: 0.00 | F17: 0.00 | G17: 0.00 | H17: 453,840.00 | I17: 0.00 | J17: 0.00 | K17: 0.00 | L17: 0.00 | M17: 0.00
A18: 1.6.2. Родительская плата взимаемая с родителей за присмотр и уход за детьми в дошкольных образовательных учреждениях | B18: Отдел образования управления по социально-культурным вопросам администрации города Усолье-Сибирское | C18: местный бюджет | D18: 310,386.56 | E18: 0.00 | F18: 0.00 | G18: 0.00 | H18: 310,386.56 | I18: 0.00 | J18: 0.00 | K18: 0.00 | L18: 0.00 | M18: 0.00
A19: Подпрограмма 2 «Поддержка социально ориентированных некоммерческих организаций города Усолье-Сибирское» на 2019-2027 годы | B19: Отдел по взаимодействию с общественностью и аналитической работе аппарата администрации города Усолье-Сибирское | C19: местный бюджет | D19: =SUM(E19+F19+G19+H19+I19+J19+L19+M19+K19) -> 7,927,410.20 | E19: =SUM(E20+E21+E22) -> 956,610.20 | F19: =SUM(F20+F21+F22) -> 768,100.00 | G19: =SUM(G20+G21+G22) -> 768,100.00 | H19: =SUM(H20+H21+H22) -> 768,100.00 | I19: =SUM(I20+I21+I22) -> 768,100.00 | J19: =SUM(J20+J21+J22) -> 794,100.00 | K19: =SUM(K20+K21+K22) -> 1,568,100.00 | L19: =SUM(L20+L21+L22) -> 768,100.00 | M19: 768,100.00
A20: Основное мероприятие 2.1. Предоставление субсидии СО НКО на реализацию социально значимых проектов | B20: Отдел по взаимодействию с общественностью и аналитической работе аппарата администрации города Усолье-Сибирское | C20: местный бюджет | D20: 4,752,000.00 | E20: 444,000.00 | F20: 444,000.00 | G20: 444,000.00 | H20: 444,000.00 | I20: 444,000.00 | J20: 444,000.00 | K20: 1,200,000.00 | L20: 444,000.00 | M20: 444,000.00
A21: Основное мероприятие 2.2. Предоставление субсидий СО НКО, не являющимся государственными (муниципальными) учреждениями, в целях оказания финансовой поддержки для частичной или полной оплаты за содержание, техническое обслуживание помещения, коммунальных услуг, услуг связи и интернета | B21: Отдел по взаимодействию с общественностью и аналитической работе аппарата администрации города Усолье-Сибирское | C21: местный бюджет | D21: 2,986,900.00 | E21: 324,100.00 | F21: 324,100.00 | G21: 324,100.00 | H21: 324,100.00 | I21: 324,100.00 | J21: 350,100.00 | K21: 368,100.00 | L21: 324,100.00 | M21: 324,100.00
A22: Основное мероприятие 2.3. Проведение социально значимых мероприятий, направленных на активизацию деятельности СО НКО | B22: Отдел по взаимодействию с общественностью и аналитической работе аппарата администрации города Усолье-Сибирское | C22: местный бюджет | D22: 188,510.20 | E22: 188,510.20 | F22: 0.00 | G22: 0.00 | H22: 0.00 | I22: =I23 -> 0.00 | J22: =J23 -> 0.00 | K22: =K23 -> 0.00 | L22: =L23 -> 0.00 | M22: =M23 -> 0.00
A23: 2.3.1 Проведение Усольского городского гражданского форума | B23: Отдел по взаимодействию с общественностью и аналитической работе аппарата администрации города Усолье-Сибирское | C23: местный бюджет | D23: 188,510.20 | E23: 188,510.20 | F23: 0.00 | G23: 0.00 | H23: 0.00 | I23: 0.00 | J23: 0.00 | K23: 0.00 | L23: 0.00 | M23: 0.00
A24: Подпрограмма 3 «Поддержка семей участников специальной военной операции» на 2023-2027 годы | B24: Отдел образования управления по социально-культурным вопросам администрации города Усолье-Сибирское | C24: местный бюджет | D24: =SUM(I24+J24+K24+L24+M24) -> 2,463,597.15 | E24: - | F24: - | G24: - | H24: - | I24: 315,590.00 | J24: 443,455.00 | K24: =K25 -> 1,010,882.39 | L24: 346,834.88 | M24: 346,834.88
A25: Основное мероприятие 3.2. Оказание адресной помощи семьям участников специальной военной операции | B25: Отдел образования управления по социально-культурным вопросам администрации города Усолье-Сибирское | C25: местный бюджет | D25: 2,463,597.15 | E25: 0.00 | F25: 0.00 | G25: 0.00 | H25: 0.00 | I25: 315,590.00 | J25: 443,455.00 | K25: =K26 -> 1,010,882.39 | L25: 346,834.88 | M25: 346,834.88
A26: 3.2.1. Льготный проезд в городском общественном транспорте (кроме такси) обучающимся в общеобразовательных учреждениях и учреждениях среднепрофессионального образования, находящихся на территории муниципального образования «город Усолье-Сибирское», из семей участников специальной военной операции | B26: Отдел образования управления по социально-культурным вопросам администрации города Усолье-Сибирское | C26: местный бюджет | D26: 2,463,597.15 | E26: 0.00 | F26: 0.00 | G26: 0.00 | H26: 0.00 | I26: 315,590.00 | J26: 443,455.00 | K26: 1,010,882.39 | L26: 346,834.88 | M26: 346,834.88
A27: Подпрограмма 4 «Поддержка граждан города Усолье-Сибирское, пострадавших от пожара» на 2023-2027 годы | B27: Отдел по взаимодействию с общественностью и аналитической работе аппарата администрации города Усолье-Сибирское | C27: местный бюджет | D27: =SUM(K27) -> 200,000.00 | E27: - | F27: - | G27: - | H27: - | I27: - | J27: - | K27: 200,000.00 | L27: 0.00 | M27: 0.00
A28: Основное мероприятие 4.1 Поддержка граждан города Усолье-Сибирское, пострадавших от пожара | B28: Отдел по взаимодействию с общественностью и аналитической работе аппарата администрации города Усолье-Сибирское | C28: местный бюджет | D28: =SUM(K28) -> 200,000.00 | E28: - | F28: - | G28: - | H28: - | I28: - | J28: - | K28: 200,000.00 | L28: 0.00 | M28: 0.00
A30: Мэр города М.В. Торопкин

Sheet Лист2
